[Event "Lliga Catalana DH 2023"]
[Site "Catalonia"]
[Date "2023.04.15"]
[Round "11.9"]
[White "Fernandez Climent, Albert"]
[Black "Navarro Perez, Manuel"]
[Result "1/2-1/2"]
[ECO "C41"]
[WhiteElo "1959"]
[BlackElo "2004"]
[Annotator "TA"]
[PlyCount "87"]
[EventDate "2023.01.24"]
[EventType "team-tourn"]
[EventCountry "ESP"]
[SourceTitle "playchess.com"]
[Source "ChessBase"]
[SourceQuality "1"]
[TimeControl "40/5400+30:1800+30"]

{[%evp 10,87,35,29,39,45,39,47,60,45,66,37,41,42,55,58,116,103,254,254,288,270,292,286,425,426,427,412,474,313,370,329,334,344,362,341,419,391,375,370,341,197,402,395,471,461,395,188,170,186,174,106,119,73,83,87,171,143,135,7,6,8,8,-20,-19,-28,-21,-418,-58,-50,0,0,0,0,0,0,0,0,224,0]} 1. e4 d6 2. d4 e5 3. Nf3 exd4 4. Nxd4 Nf6 5. Nc3 Be7 6. Be2 a6 {C41: Philidor Defence.} 7. f4 c5 8. Nb3 b5 {White is slightly better.} 9. Bf3 {Strongly threatening e5.} Ra7 {[#]} 10. a3 $146 ({Predecessor:} 10. e5 dxe5 11. Qxd8+ Bxd8 12. fxe5 Nfd7 13. Bf4 Nxe5 14. Bxe5 Re7 15. O-O-O Rxe5 16. Rhe1 Rxe1 17. Rxe1+ {1-0 Barczay,L-Fernandez Bravo,C Capablanca Memorial-08 1971 (4)}) 10... O-O 11. Be3 $36 {[%mdl 2048] Black is under pressure.} Nbd7 12. g4 {[%cal Bg2g4,Bg4g5][%mdl 32]} h6 (12... d5 $14) 13. h4 $16 {g5 would be deadly. White is more active.} Nh7 (13... Nb6 $16) 14. g5 $18 Nb6 15. Na5 Bd7 16. Qd2 Nc4 (16... Rc7 $142 17. gxh6 g6) 17. Nxc4 bxc4 18. O-O-O Bc6 19. Nd5 {Against Qb6} Bxd5 20. Qxd5 c3 21. gxh6 {Black is weak on the light squares} cxb2+ 22. Kb1 Qa5 23. Qa2 (23. Kxb2 Rb8+ 24. Kc1 Rab7 $19) 23... gxh6 24. Rhg1+ (24. Qxb2 Bf6 25. e5 dxe5 $16) 24... Kh8 25. f5 (25. Qxb2+ Bf6 26. e5 dxe5 $16) (25. e5 $142) 25... Qc3 $2 (25... Bf6 {was worth a try.} 26. Rxd6 (26. Bxh6 Rd8 $16) 26... Rd8 27. Rxd8+ Qxd8) 26. Bxh6 ({Inferior is} 26. Qxb2 Rb7 27. Qxb7 Bf6 $11) 26... Bf6 27. Bxf8 Nxf8 28. Qb3 ({Much less strong is} 28. Rxd6 c4 29. Rxf6 Qxf6 30. Qxc4 Qb6 $18) (28. Rd3 $142 Qe5 29. c3) 28... Qxb3 29. cxb3 Be5 30. Rd2 (30. Rd5 $1 $18) 30... a5 $16 31. a4 (31. Rxb2 $142 {Hoping for Rbg2.} Bxb2 32. Kxb2) 31... Rb7 32. Bd1 Rb4 (32... Nd7 $16) 33. Bc2 Nd7 {[#]} 34. Rgd1 (34. Rdg2 $1 $16) 34... c4 $1 $11 35. bxc4 {And now Rxd6 would win.} Nb6 $1 36. Re2 Nxa4 {( -> ...Nc3#)} 37. Bxa4 (37. Re3 {simplifies} Rxc4 38. Bb3 Nc3+ 39. Rxc3 Rxc3 40. Kxb2 Re3+ 41. Ka3) 37... Rxa4 {[%mdl 4096] Endgame KRR-KRB} 38. Ree1 $2 {[%mdl 8192]} (38. Rxb2 $1 $11 Bxb2 39. Kxb2 Rxc4 40. Rxd6) 38... Rxc4 $2 ({Black should play} 38... Ra1+ $19 39. Kc2 a4) 39. Rd5 $15 a4 (39... Kh7 $15) 40. Ra5 $11 Kg7 41. Ra7 Kf6 42. Rd1 Kg7 43. h5 Rb4 $2 {[#]} (43... Bd4 $11 {and Black is okay.} 44. Ra8 Kh6) 44. Re1 $2 {Weighted Error Value: White=0.42/Black=0.51} (44. Rh1 $1 $18) 1/2-1/2

[Event "Lliga Catalana DH 2023"]
[Site "Catalonia"]
[Date "2023.04.15"]
[Round "11.10"]
[White "Salinas Tomas, Daniel"]
[Black "Martin Barcelo, Carles"]
[Result "1-0"]
[ECO "E11"]
[WhiteElo "2147"]
[BlackElo "2208"]
[Annotator "TA"]
[PlyCount "141"]
[EventDate "2023.01.24"]
[EventType "team-tourn"]
[EventCountry "ESP"]
[SourceTitle "playchess.com"]
[Source "ChessBase"]
[SourceQuality "1"]
[TimeControl "40/5400+30:1800+30"]

{[%evp 12,141,0,4,27,24,31,-18,20,22,25,0,7,13,35,36,45,34,43,54,41,69,56,79,72,36,32,36,39,45,130,129,160,0,81,113,110,0,79,-48,590,229,499,487,447,360,530,510,626,625,1047,358,355,370,347,346,336,321,351,352,352,338,337,220,194,198,223,204,199,202,210,208,253,255,259,233,231,181,179,191,259,236,218,221,287,259,283,280,280,279,260,227,380,335,381,366,409,389,954,954,897,870,29960,29966,29966,29969,29969,29969,29972,29972,29968,29962,29975,29973,29974,29975,29983,6400,29988,29983,29983,29984,29984,29983,29984,29985,29986,29987,29987,29988,29988,29986]} 1. d4 {[%emt 0:00:09]} Nf6 {[%emt 0:00:40]} 2. c4 {[%emt 0:03:03]} e6 {[%emt 0:00:43]} 3. g3 {[%emt 0:01:40]} d5 {[%emt 0:00:34]} 4. Nf3 {[%emt 0:04:51]} Bb4+ {[%emt 0:02:07]} 5. Bd2 {[%emt 0:01:49]} a5 {[%emt 0:02:25]} 6. Qc2 {[%emt 0:02:09]} O-O {[%emt 0:00:55]} 7. Bg2 {[%emt 0:01:26]} c5 {[%emt 0:09:27] E11: Bogo-Indian.} 8. dxc5 {[%emt 0:01:19]} d4 {[%emt 0:06:21]} 9. O-O {[%emt 0:17:14]} (9. Bxb4 $14 {is superior.} axb4 10. Nbd2) 9... Nc6 {[%emt 0:00:00] The position is equal.} 10. Bxb4 {[%emt 0:00:36]} axb4 {[%emt 0:00:00]} 11. Nbd2 {[%emt 0:03:36]} Qe7 {[%emt 0:07:58]} 12. Ng5 {[%emt 0:03:41]} Qxc5 {[%emt 0:13:14]} 13. Nde4 {[%emt 0:02:55]} Nxe4 {[%emt 0:00:14]} 14. Nxe4 {[%emt 0:00:05]} Qe7 {[%emt 0:01:32]} 15. c5 {[%emt 0:00:54]} e5 {[%emt 0:01:51]} 16. Nd6 {[%emt 0:04:29]} Be6 {[%emt 0:02:59]} 17. a3 {[%emt 0:06:58]} b3 {[%emt 0:06:10]} 18. Qd2 {[%emt 0:02:11] White is more active.} f5 {[%emt 0:11:51] [#]} 19. e3 $146 {[%emt 0:02:29]} ({Predecessor:} 19. a4 e4 20. a5 Kh8 21. Rfd1 Rf6 22. Qf4 Bd5 23. Ra4 h6 24. h4 Qc7 25. Nb5 {½-½ Morcin,T (1854)-Silva Filho,A (1731) RB-2011-0-00109}) 19... Ra4 {[%emt 0:06:00]} 20. Rad1 {[%emt 0:20:19]} Qc7 {[%emt 0:14:46]} (20... g6 $14) 21. Rfe1 {[%emt 0:06:38]} e4 {[%emt 0:04:02]} 22. Nb5 $2 {[%emt 0:04:51]} (22. f3 $16) 22... Qd7 {[%emt 0:01:36]} (22... dxe3 $1 $11 {remains equal.} 23. Nxc7 exd2 24. Rxd2 Bf7) 23. exd4 $16 {[%emt 0:00:38]} Rd8 {[%emt 0:02:07][%cal Rc6d4]} 24. Nd6 {[%emt 0:01:24]} (24. f3 $16 Nxd4 25. Nxd4 Qxd4+ 26. Qxd4 Raxd4 27. Rxd4 Rxd4 28. fxe4) 24... Nxd4 {[%emt 0:01:33] [#]} (24... Rxd4 $11 25. Qg5 b6 26. Rxd4 Nxd4) 25. Qc3 {[%emt 0:01:17]} (25. g4 $1 $16 {[%cal Rg4f5]}) 25... Nc2 $2 {[%emt 0:02:29][%mdl 8192] Loses the game.} (25... b6 $1 $15 26. Rxd4 Rxd4 27. Qxd4 bxc5 {[%mdl 64] Remove Defender} 28. Qxc5 Qxd6) 26. Re2 $2 {[%emt 0:00:00]} (26. Nxf5 Nd4 27. Nd6 (27. Rxe4 $2 Bxf5 28. Kh1 Bxe4 $19)) 26... Raa8 $2 {[%emt 0:02:18]} (26... Rf8 27. Red2 Qe7) 27. Red2 $18 {[%emt 0:00:00][%cal Od6f5] aiming for Nxf5!} (27. g4 Rf8 28. Red2 Qa4) 27... Qe7 {[%emt 0:00:00]} 28. Bf1 {[%emt 0:00:00] Bc4 would be deadly.} (28. Nxf5 Bxf5 29. Rxd8+ Rxd8 $18) 28... e3 {[%emt 0:00:04]} (28... Kf8 $142 29. Bc4 e3) 29. fxe3 {[%emt 0:00:41]} h6 {[%emt 0:00:32]} 30. Bc4 {[%emt 0:00:00]} Bxc4 {[%emt 0:00:15]} 31. Qxc4+ $2 {[%emt 0:00:00]} (31. Nxf5 Qf7 32. Rxd8+ Rxd8 33. Rxd8+ Kh7 34. Re8 Qxf5 35. Qxc4) 31... Kh7 {[%emt 0:00:07]} 32. Qxb3 {[%emt 0:00:00]} (32. Nxf5 Rxd2 33. Rxd2 Nxe3 $18) 32... Qxe3+ {[%emt 0:00:56]} 33. Qxe3 {[%emt 0:00:00]} Nxe3 {[%emt 0:00:39]} 34. Re1 {[%emt 0:00:00]} Ng4 {[%emt 0:00:30]} 35. Re7 {[%emt 0:00:00] Prevents Rd7} Ra5 {[%emt 0:03:51]} 36. h3 {[%emt 0:00:34]} (36. Rxb7 Rxc5 37. Rb6 Rf8 $16) (36. Nxb7 Rxd2 37. Nxa5 Rd1+ 38. Kg2 Rd2+ 39. Kf1 (39. Kg1 Rd1+ 40. Kg2 Rd2+ 41. Kf1 Nxh2+ 42. Kg1 Nf3+ 43. Kf1 Nh2+ 44. Kg1 Nf3+ 45. Kf1 Nh2+ $11) 39... Nxh2+ 40. Kg1 Nf3+ 41. Kf1 Nh2+ 42. Kg1 Nf3+ 43. Kf1 Nh2+ $11) 36... Nf6 {[%emt 0:10:50] [#]} 37. Rxg7+ $3 {[%emt 0:01:54][%mdl 576] Decoy} Kxg7 {[%emt 0:00:00]} 38. Nxf5+ {[%emt 0:00:09][%mdl 64] Discovered Attack} Kg6 {[%emt 0:00:00]} 39. Nh4+ {[%emt 0:00:16]} ({Stronger than} 39. Rxd8 Kxf5 40. g4+ Ke4 $15) 39... Kf7 {[%emt 0:00:00]} 40. Rxd8 {[%emt 0:00:01]} Rxc5 {[%emt 0:00:59][%mdl 4096] Endgame [#] KRN-KRN} 41. Rd2 {[%emt 0:32:38] Against Rc2} Re5 {[%emt 0:17:50]} 42. Kg2 {[%emt 0:01:04]} h5 {[%emt 0:01:38]} 43. Nf3 {[%emt 0:01:34]} Re3 {[%emt 0:01:31]} 44. Kf2 {[%emt 0:02:07]} Rb3 {[%emt 0:00:00]} 45. Re2 {[%emt 0:00:18] Against Ne4+} Kg6 {[%emt 0:01:17]} (45... Kg8 {was called for.} 46. Nd4 Rd3) 46. Ne5+ {[%emt 0:00:53]} Kf5 {[%emt 0:00:00]} 47. Nc4 {[%emt 0:00:46] Re3 is the strong threat.} Rd3 {[%emt 0:01:25]} (47... Ne4+ $2 48. Rxe4 Kf6 49. Re3 $18) 48. Re5+ {[%emt 0:00:45]} Kg6 {[%emt 0:00:25]} 49. Re3 {[%emt 0:00:30]} Rd4 {[%emt 0:00:00]} 50. Ne5+ {[%emt 0:00:28]} Kf5 {[%emt 0:01:20]} 51. Nf3 {[%emt 0:01:42]} Rc4 {[%emt 0:00:00]} (51... Ne4+ {was necessary.} 52. Kg2 Rc4) 52. Re5+ {[%emt 0:00:39]} Kg6 {[%emt 0:00:00]} 53. Rb5 {[%emt 0:00:15] Threatens to win with Ne5+.} Ne4+ {[%emt 0:00:00]} 54. Ke3 {[%emt 0:00:14] And now Ne5+ would win.} Kf6 {[%emt 0:00:00]} (54... Nd6 55. Rxb7 Kf6) 55. b3 {[%emt 0:01:05]} Rc5 {[%emt 0:00:00]} 56. Rb6+ {[%emt 0:00:09]} Kf5 {[%emt 0:00:00]} 57. g4+ {[%emt 0:00:07][%mdl 64] Deflection} hxg4 {[%emt 0:00:00]} 58. hxg4+ {[%emt 0:00:04]} Kxg4 {[%emt 0:00:00]} 59. Kxe4 {[%emt 0:00:04] KRN-KR} Rc7 {[%emt 0:00:01]} 60. a4 {[%emt 0:00:20]} Re7+ {[%emt 0:00:32]} 61. Ne5+ {[%emt 0:00:01]} Kg5 {[%emt 0:00:06]} 62. a5 {[%emt 0:00:16]} Rc7 {[%emt 0:00:42]} 63. b4 {[%emt 0:00:08]} Rh7 {[%emt 0:00:48]} 64. b5 {[%emt 0:01:01]} (64. Rg6+ $142 Kh5 65. Kf4 Rf7+ 66. Nxf7 Kxg6 67. Nd8 Kf6 68. Nxb7 Ke7 69. a6) 64... Rh1 {[%emt 0:00:31]} 65. Rxb7 {[%emt 0:00:22] White mates.} Re1+ {[%emt 0:01:21]} 66. Kd4 {[%emt 0:00:04]} Kf5 {[%emt 0:00:06]} 67. Nd3 {[%emt 0:00:43]} Re8 {[%emt 0:00:20]} 68. a6 {[%emt 0:00:15][%cal Ba5a6,Ba6a7][%mdl 32]} Rd8+ {[%emt 0:00:05]} 69. Kc4 {[%emt 0:00:03]} Ke4 {[%emt 0:01:14]} 70. Re7+ {[%emt 0:00:08]} Kf5 {[%emt 0:00:06]} 71. a7 {[%emt 0:00:11] Weighted Error Value: White=0.39/Black=0.57} 1-0

[Event "Lliga Catalana DH 2023"]
[Site "Catalonia"]
[Date "2023.04.15"]
[Round "11.10"]
[White "Mas Mestres, Jordi"]
[Black "Pinyol i Llora, Julia"]
[Result "1-0"]
[ECO "C00"]
[WhiteElo "1818"]
[BlackElo "1795"]
[Annotator "NA RC COMBH"]
[PlyCount "47"]
[EventDate "2023.01.24"]
[EventType "team-tourn"]
[EventCountry "ESP"]
[SourceTitle "playchess.com"]
[Source "ChessBase"]
[SourceQuality "1"]
[TimeControl "40/5400+30:1800+30"]

1. e4 c5 2. Nf3 e6 3. d3 Nc6 4. g3 Nf6 5. Bg2 d5 6. Nbd2 Be7 7. O-O O-O 8. e5 Nd7 9. Re1 b5 10. h4 a5 11. a3 Bb7 12. Nf1 b4 13. N1h2 bxa3 14. bxa3 Nb6 15. Bf4 d4 16. Ng5 Nd5 17. Qh5 h6 18. Ng4 hxg5 19. hxg5 Qe8 20. Be4 g6 21. Qh4 Bxg5 22. Bxg5 Nce7 23. Nf6+ Nxf6 24. Bxf6 1-0